fUST/lending_fUST_20250604
["ID","MTS","AMOUNT","RATE_DAILY","PERIOD"]
[364102124,1748999444263,-151.0,0.00024131,7]
[364102125,1748999444272,-151.0,0.00024131,7]
[364102126,1748999444282,-151.0,0.00024131,7]
[364102127,1748999444291,-151.0,0.00024131,7]
[364102128,1748999444302,-151.0,0.00024131,7]
[364102129,1748999444312,-151.0,0.00024131,7]
[364102130,1748999444322,-151.0,0.00024131,7]
[364102131,1748999444332,-288.154441,0.00024131,7]
[364102132,1748999444342,-220.863569,0.00024131,7]
[364102133,1748999444351,-220.863569,0.00024131,7]
[364102134,1748999444361,-220.863569,0.00024131,7]
[364102135,1748999444371,-220.863569,0.00024131,7]
[364102136,1748999444381,-220.863569,0.00024131,7]
[364102137,1748999444391,-220.863569,0.00024131,7]
[364102138,1748999444401,-220.863569,0.00024131,7]
[364102139,1748999444410,-220.863569,0.00024131,7]
[364102140,1748999444420,-220.863569,0.00024131,7]
[364102141,1748999444430,-220.863569,0.00024131,7]
[364102142,1748999444440,-220.863569,0.00024131,7]
[364102143,1748999444450,-220.863569,0.00024131,7]
[364102144,1748999444459,-220.863569,0.00024131,7]
[364102145,1748999444469,-220.863569,0.00024131,7]
[364102146,1748999444478,-220.863569,0.00024131,7]
[364102147,1748999444487,-220.863569,0.00024131,7]
[364102148,1748999444497,-220.863569,0.00024131,7]
[364102149,1748999444507,-220.86356,0.00024131,7]
[364102150,1748999444516,-151.0,0.00024131,7]
[364102151,1748999444526,-151.0,0.00024131,7]
[364102152,1748999444536,-151.0,0.00024131,7]
[364102153,1748999444546,-151.0,0.00024131,7]
[364102154,1748999444556,-151.0,0.00024131,7]
[364102155,1748999444565,-151.0,0.00024131,7]
[364102156,1748999444575,-151.0,0.00024131,7]
[364102157,1748999444586,-151.0,0.00024131,7]
[364102159,1748999444595,-151.0,0.00024131,7]
[364102160,1748999444606,-151.0,0.00024131,7]
[364102162,1748999444616,-151.0,0.00024131,7]
[364102164,1748999444626,-151.0,0.00024131,7]
[364102166,1748999444635,-151.0,0.00024131,7]
[364102168,1748999444645,-151.0,0.00024131,7]
[364102170,1748999444655,-151.0,0.00024131,7]
[364102172,1748999444665,-151.0,0.00024131,7]
[364102174,1748999444675,-205.070843,0.00024131,7]
[364102177,1748999444684,-151.0,0.00024131,7]
[364102179,1748999444694,-151.0,0.00024131,7]
[364102181,1748999444704,-151.0,0.00024131,7]
[364102183,1748999444713,-151.0,0.00024131,7]
[364102185,1748999444722,-151.0,0.00024131,7]
[364102187,1748999444731,-151.0,0.00024131,7]
[364102190,1748999444741,-151.0,0.00024131,7]
[364102192,1748999444750,-151.0,0.00024131,7]
[364102194,1748999444759,-151.0,0.00024131,7]
[364102197,1748999444769,-151.0,0.00024131,7]
[364102199,1748999444778,-151.0,0.00024131,7]
[364102202,1748999444787,-277.106872,0.00024131,7]
[364102204,1748999444798,-151.0,0.00024131,7]
[364102206,1748999444808,-259.408792,0.00024131,7]
[364102208,1748999444818,-168.393788,0.00024131,7]
[364102210,1748999444828,-168.393788,0.00024131,7]
[364102212,1748999444837,-168.393788,0.00024131,7]
[364102214,1748999444847,-168.393788,0.00024131,7]
[364102215,1748999444857,-168.393788,0.00024131,7]
[364102216,1748999444867,-168.393788,0.00024131,7]
[364102217,1748999444877,-168.393788,0.00024131,7]
[364102219,1748999444886,-168.393788,0.00024131,7]
[364102221,1748999444895,-168.393788,0.00024131,7]
[364102223,1748999444905,-168.393788,0.00024131,7]
[364102225,1748999444915,-168.393788,0.00024131,7]
[364102228,1748999444926,-168.393788,0.00024131,7]
[364102231,1748999444936,-168.393788,0.00024131,7]
[364102233,1748999444945,-168.393788,0.00024131,7]
[364102235,1748999444955,-168.393788,0.00024131,7]
[364102237,1748999444964,-168.393788,0.00024131,7]
[364102239,1748999444974,-168.393788,0.00024131,7]
[364102241,1748999444983,-168.393788,0.00024131,7]
[364102243,1748999444992,-168.393788,0.00024131,7]
[364102244,1748999445002,-168.39378,0.00024131,7]
[364102246,1748999445012,-151.0,0.00024131,7]
[364102248,1748999445022,-151.0,0.00024131,7]
[364102250,1748999445031,-151.0,0.00024131,7]
[364102252,1748999445041,-151.0,0.00024131,7]
[364102255,1748999445051,-151.0,0.00024131,7]
[364102256,1748999445061,-151.0,0.00024131,7]
[364102258,1748999445071,-151.0,0.00024131,7]
[364102260,1748999445081,-151.0,0.00024131,7]
[364102262,1748999445090,-151.0,0.00024131,7]
[364102264,1748999445099,-151.0,0.00024131,7]
[364102266,1748999445109,-151.0,0.00024131,7]
[364102268,1748999445120,-151.0,0.00024131,7]
[364102270,1748999445129,-151.0,0.00024131,7]
[364102272,1748999445138,-151.0,0.00024131,7]
[364102274,1748999445148,-151.0,0.00024131,7]
[364102276,1748999445158,-151.0,0.00024131,7]
[364102278,1748999445167,-151.0,0.00024131,7]
[364102280,1748999445178,-151.0,0.00024131,7]
[364102282,1748999445187,-205.14,0.00024131,7]
[364102284,1748999445197,-151.0,0.00024131,7]
[364102286,1748999445206,-151.0,0.00024131,7]
[364102288,1748999445217,-151.0,0.00024131,7]
[364102290,1748999445230,-151.0,0.00024131,7]
[364102292,1748999445240,-151.0,0.00024131,7]
[364102294,1748999445249,-151.0,0.00024131,7]
[364102296,1748999445259,-151.0,0.00024131,7]
[364102298,1748999445271,-151.0,0.00024131,7]
[364102300,1748999445280,-151.0,0.00024131,7]
[364102302,1748999445290,-256.578175,0.00024131,7]
[364102304,1748999445301,-151.0,0.00024131,7]
[364102306,1748999445311,-151.0,0.00024131,7]
[364102308,1748999445320,-224.588084,0.00024131,7]
[364102310,1748999445330,-151.0,0.00024131,7]
[364102312,1748999445339,-151.0,0.00024131,7]
[364102314,1748999445349,-151.0,0.00024131,7]
[364102316,1748999445358,-151.0,0.00024131,7]
[364102318,1748999445368,-151.0,0.00024131,7]
[364102320,1748999445377,-151.0,0.00024131,7]
[364102322,1748999445387,-151.0,0.00024131,7]
[364102324,1748999445397,-151.0,0.00024131,7]
[364102327,1748999445406,-151.0,0.00024131,7]
[364102329,1748999445416,-151.0,0.00024131,7]
[364102331,1748999445425,-151.0,0.00024131,7]
[364102333,1748999445435,-151.0,0.00024131,7]
[364102335,1748999445445,-151.0,0.00024131,7]
[364102337,1748999445454,-151.0,0.00024131,7]
[364102339,1748999445464,-151.0,0.00024131,7]
[364102341,1748999445474,-151.0,0.00024131,7]
[364102343,1748999445484,-151.0,0.00024131,7]
[364102345,1748999445494,-151.0,0.00024131,7]
[364102347,1748999445503,-151.0,0.00024131,7]
[364102349,1748999445513,-156.953898,0.00024131,7]
[364102351,1748999445522,-361.09433,0.00024131,7]
[364102353,1748999445532,-361.09433,0.00024131,7]
[364102355,1748999445542,-361.09433,0.00024131,7]
[364102357,1748999445551,-361.09433,0.00024131,7]
[364102359,1748999445561,-361.09433,0.00024131,7]
[364102361,1748999445570,-361.09433,0.00024131,7]
[364102363,1748999445580,-361.09433,0.00024131,7]
[364102365,1748999445590,-361.09433,0.00024131,7]
[364102367,1748999445599,-361.09433,0.00024131,7]
[364102369,1748999445609,-361.09433,0.00024131,7]
[364102371,1748999445618,-361.09433,0.00024131,7]
[364102373,1748999445627,-361.09433,0.00024131,7]
[364102375,1748999445637,-361.09433,0.00024131,7]
[364102377,1748999445646,-361.09433,0.00024131,7]
[364102379,1748999445656,-361.09433,0.00024131,7]
[364102381,1748999445665,-361.09433,0.00024131,7]
[364102383,1748999445674,-361.09433,0.00024131,7]
[364102385,1748999445685,-361.09433,0.00024131,7]
[364102387,1748999445695,-361.09433,0.00024131,7]
[364102389,1748999445704,-361.094332,0.00024131,7]
[364102391,1748999445714,-151.0,0.00024131,7]
[364102393,1748999445724,-151.0,0.00024131,7]
[364102395,1748999445734,-151.0,0.00024131,7]
[364102397,1748999445744,-151.0,0.00024131,7]
[364102399,1748999445754,-157.945674,0.00024131,7]
[364102401,1748999445764,-151.0,0.00024131,7]
[364102403,1748999445774,-151.0,0.00024131,7]
[364102405,1748999445783,-151.0,0.00024131,7]
[364102407,1748999445792,-151.0,0.00024131,7]
[364102408,1748999445802,-151.0,0.00024131,7]
[364102410,1748999445811,-151.0,0.00024131,7]
[364102412,1748999445821,-259.762291,0.00024131,7]
[364102414,1748999445830,-151.0,0.00024131,2]
[364102416,1748999445840,-307.55,0.00024131,7]
[364102418,1748999445850,-307.55,0.00024131,7]
[364102420,1748999445860,-307.55,0.00024131,7]
[364102422,1748999445869,-307.55,0.00024131,7]
[364102424,1748999445879,-307.55,0.00024131,7]
[364102426,1748999445888,-307.55,0.00024131,7]
[364102428,1748999445898,-307.55,0.00024131,7]
[364102430,1748999445908,-307.55,0.00024131,7]
[364102432,1748999445917,-307.55,0.00024131,7]
[364102434,1748999445928,-151.0,0.00024131,2]
[364102436,1748999445938,-307.55,0.00024131,7]
[364102438,1748999445947,-151.0,0.00024131,2]
[364102440,1748999445958,-307.55,0.00024131,7]
[364102443,1748999445968,-151.0,0.00024131,2]
[364102445,1748999445977,-307.55,0.00024131,7]
[364102446,1748999445986,-151.0,0.00024131,2]
[364102449,1748999445997,-307.55,0.00024131,7]
[364102451,1748999446007,-151.0,0.00024131,2]
[364102453,1748999446016,-307.55,0.00024131,7]
[364102455,1748999446026,-151.0,0.00024131,2]
[364102457,1748999446035,-307.55,0.00024131,7]
[364102459,1748999446045,-151.0,0.00024131,2]
[364102460,1748999446054,-307.55,0.00024131,7]
[364102463,1748999446064,-151.0,0.00024131,2]
[364102464,1748999446074,-307.55,0.00024131,7]
[364102466,1748999446084,-151.0,0.00024131,2]
[364102469,1748999446094,-307.55,0.00024131,7]
[364102470,1748999446103,-151.0,0.00024131,2]
[364102472,1748999446113,-151.0,0.00024131,2]
[364102474,1748999446122,-151.0,0.00024131,2]
[364102476,1748999446132,-151.0,0.00024131,2]
[364102478,1748999446141,-151.0,0.00024131,2]
[364102480,1748999446151,-151.0,0.00024131,2]
[364102482,1748999446160,-151.0,0.00024131,2]
[364102484,1748999446170,-151.0,0.00024131,2]
[364102486,1748999446179,-250.70252876,0.00024131,2]
[364102488,1748999446189,-307.55,0.00024131,7]
[364102490,1748999446198,-307.55,0.00024131,7]
[364102492,1748999446207,-281042.07366759,0.00024131,20]
[364102503,1748999446313,-440.0,0.00016712,2]
[364102505,1748999446326,-5136.2188089,0.00024131,20]
[364102508,1748999446338,-3647.92052878,0.00024131,20]
[364102541,1748999446659,-440.0,0.00016986,2]
[364102543,1748999446671,-440.0,0.0001726,2]
[364102545,1748999446682,-440.0,0.00017534,2]
[364102547,1748999446692,-440.0,0.00017808,2]
[364102549,1748999446702,-440.0,0.00018082,2]
[364102551,1748999446712,-440.0,0.00018356,2]
[364102553,1748999446721,-440.0,0.0001863,2]
[364102555,1748999446731,-440.0,0.00018904,2]
[364102556,1748999446740,-440.0,0.00019178,2]
[364102557,1748999446749,-440.0,0.00019451,2]
[364102558,1748999446759,-440.0,0.00019452,2]
[364102559,1748999446768,-440.0,0.00019725,2]
[364102560,1748999446778,-440.0,0.00019726,2]
[364102561,1748999446787,-440.0,0.00019999,2]
[364102562,1748999446797,-440.0,0.0002,2]
[364102563,1748999446807,-181.5142356,0.00020273,2]
[364102564,1748999446820,-440.0,0.00020273,2]
[364102566,1748999446830,-440.0,0.00020547,2]
[364102568,1748999446840,-440.0,0.00020821,2]
[364102570,1748999446849,-440.0,0.00021095,2]
[364102572,1748999446858,-358.68197676,0.00021369,2]
[364102574,1748999446868,-194.46823782,0.0002255,2]
[364102576,1748999446878,-158.5442955,0.00023315,2]
[364102578,1748999446887,-572.6068135,0.00023315,2]
[364102580,1748999446897,-902.98,0.00023892,10]
[364102582,1748999446907,-25259.0911199,0.00024131,20]
[364102585,1748999446930,-2289.7943727,0.00024131,20]
[364102588,1748999446945,-472.95933375,0.00024131,20]
[364103678,1748999960028,1479.77329052,0.00024658,120]
[364103682,1749000285777,302.62,0.000246,120]
[364103684,1749000298945,264.64706,0.00013699,2]
[364103702,1749000388156,5000.0,0.0001551,2]
[364103732,1749000631878,-3476.10537808,0.0001611,2]
[364103733,1749000631888,-92.2908355,0.00016437,2]
[364103734,1749000631974,-1107.7091645,0.00016437,2]
[364103735,1749000631985,-440.0,0.00016438,2]
[364103736,1749000631994,-440.0,0.00016438,2]
[364103737,1749000632004,-440.0,0.00016438,2]
[364103738,1749000632013,-300.0,0.0001671,2]
[364103739,1749000632022,-300.0,0.00016967,2]
[364103740,1749000632032,-300.0,0.00016967,2]
[364103741,1749000632041,-300.0,0.00016967,2]
[364103742,1749000632050,-300.0,0.00016967,2]
[364103743,1749000632060,-300.0,0.00016967,2]
[364103744,1749000632069,-440.0,0.00016968,2]
[364103745,1749000632078,-440.0,0.00016968,2]
[364103747,1749000632087,-440.0,0.00016968,2]
[364103748,1749000632097,-440.0,0.00016968,2]
[364103749,1749000632111,-2849.89765122,0.00016968,2]
[364103768,1749000637896,-4502.66510433,0.00016968,2]
[364103770,1749000637993,-17547.43724445,0.00016968,2]
[364103771,1749000638003,-156.32681687,0.00017142,2]
[364103772,1749000638013,-440.0,0.00017242,2]
[364103773,1749000638023,-440.0,0.00017242,2]
[364103774,1749000638032,-440.0,0.00017242,2]
[364103775,1749000638042,-440.0,0.00017242,2]
[364103776,1749000638052,-440.0,0.00017516,2]
[364103777,1749000638061,-440.0,0.00017516,2]
[364103778,1749000638071,-440.0,0.00017516,2]
[364103779,1749000638080,-440.0,0.00017516,2]
[364103780,1749000638090,-440.0,0.0001779,2]
[364103781,1749000638099,-440.0,0.0001779,2]
[364103782,1749000638109,-440.0,0.0001779,2]
[364103783,1749000638119,-440.0,0.0001779,2]
[364103784,1749000638128,-1580.81026297,0.000179,2]
[364103785,1749000638138,-440.0,0.00018064,2]
[364103786,1749000638148,-440.0,0.00018064,2]
[364103787,1749000638157,-440.0,0.00018064,2]
[364103788,1749000638167,-440.0,0.00018064,2]
[364103789,1749000638177,-429.8147163,0.00018087,2]
[364103790,1749000638186,-1580.81026283,0.00018141,2]
[364103791,1749000638195,-422.573341,0.00018206,2]
[364103792,1749000638205,-440.0,0.00018338,2]
[364103793,1749000638214,-440.0,0.00018338,2]
[364103794,1749000638224,-440.0,0.00018338,2]
[364103795,1749000638234,-440.0,0.00018338,2]
[364103796,1749000638243,-1580.81026283,0.00018383,2]
[364103797,1749000638253,-352.0,0.00018532,2]
[364103798,1749000638263,-516.93,0.00018612,2]
[364103799,1749000638274,-440.0,0.00018612,2]
[364103800,1749000638283,-440.0,0.00018612,2]
[364103801,1749000638293,-440.0,0.00018612,2]
[364103802,1749000638303,-1580.81026283,0.00018624,2]
[364103803,1749000638312,-423.63107087,0.00018772,2]
[364103804,1749000638322,-12670.76136593,0.00018772,2]
[364103805,1749000638331,-160.0,0.00018772,2]
[364103806,1749000638341,-160.0,0.00018772,2]
[364103807,1749000638351,-229.42821335,0.00018772,2]
[364103808,1749000638360,-212.86879254,0.00018772,2]
[364103809,1749000638370,-440.0,0.00018784,2]
[364103810,1749000638379,-440.0,0.00018785,2]
[364103811,1749000638388,-178.58420346,0.00018785,2]
[364103812,1749000638398,-440.0,0.00018785,2]
[364103813,1749000638407,-440.0,0.00018785,2]
[364103814,1749000638417,-440.0,0.00018785,2]
[364103815,1749000638426,-524.71323358,0.00018785,2]
[364103816,1749000638435,-444.00667807,0.00018785,2]
[364103817,1749000638445,-443.8009084,0.00018785,2]
[364103818,1749000638455,-440.86051761,0.00018785,2]
[364103819,1749000638465,-440.0,0.00018785,2]
[364103820,1749000638475,-442.06678165,0.00018785,2]
[364103821,1749000638484,-442.78320036,0.00018785,2]
[364103822,1749000638494,-1580.81026283,0.00018866,2]
[364103823,1749000638504,-440.0,0.00018886,2]
[364103824,1749000638513,-440.0,0.00018886,2]
[364103825,1749000638523,-440.0,0.00018886,2]
[364103826,1749000638533,-440.0,0.00019058,2]
[364103827,1749000638543,-440.0,0.00019059,2]
[364103828,1749000638553,-440.0,0.00019059,2]
[364103829,1749000638563,-440.0,0.00019059,2]
[364103830,1749000638572,-440.0,0.00019059,2]
[364103831,1749000638582,-440.0,0.00019059,2]
[364103832,1749000638592,-1580.81026283,0.00019107,2]
[364103833,1749000638602,-440.0,0.0001916,2]
[364103834,1749000638611,-440.0,0.0001916,2]
[364103835,1749000638621,-440.0,0.0001916,2]
[364103836,1749000638631,-151.0,0.00019178,2]
[364103838,1749000638641,-156.587,0.00019233,2]
[364103839,1749000638654,-303.65746759,0.00019288,2]
[364103840,1749000638664,-440.0,0.00019332,2]
[364103841,1749000638673,-440.0,0.00019333,2]
[364103842,1749000638683,-330.0,0.00019333,2]
[364103843,1749000638692,-440.0,0.00019333,2]
[364103844,1749000638703,-440.0,0.00019333,2]
[364103845,1749000638712,-440.0,0.00019333,2]
[364103846,1749000638723,-1580.81026283,0.00019348,2]
[364103847,1749000638732,-440.0,0.00019433,2]
[364103848,1749000638742,-440.0,0.00019433,2]
[364103849,1749000638751,-440.0,0.00019433,2]
[364103850,1749000638761,-156.32681685,0.00019439,2]
[364103851,1749000638771,-1580.81026283,0.0001959,2]
[364103852,1749000638781,-440.0,0.00019606,2]
[364103853,1749000638791,-440.0,0.00019607,2]
[364103854,1749000638800,-440.0,0.00019607,2]
[364103855,1749000638810,-440.0,0.00019607,2]
[364103856,1749000638820,-440.0,0.00019607,2]
[364103857,1749000638830,-440.0,0.00019707,2]
[364103858,1749000638839,-440.0,0.00019707,2]
[364103859,1749000638853,-440.0,0.00019707,2]
[364103860,1749000638863,-179.187,0.00019785,2]
[364103861,1749000638873,-1580.81026283,0.00019831,2]
[364103862,1749000638882,-440.0,0.0001988,2]
[364103863,1749000638892,-440.0,0.00019881,2]
[364103864,1749000638902,-440.0,0.00019881,2]
[364103865,1749000638912,-440.0,0.00019881,2]
[364103866,1749000638922,-440.0,0.00019881,2]
[364103867,1749000638932,-440.0,0.00019981,2]
[364103868,1749000638943,-440.0,0.00019981,2]
[364103869,1749000638952,-440.0,0.00019981,2]
[364103870,1749000638962,-242.99262108,0.0002,5]
[364103871,1749000638972,-76143.24942512,0.0002,2]
[364103872,1749000638982,-1692.05104298,0.0002,2]
[364103873,1749000638992,-1580.81026283,0.00020072,2]
[364103874,1749000639001,-452.51,0.00020154,2]
[364103875,1749000639011,-440.0,0.00020155,2]
[364103876,1749000639021,-440.0,0.00020155,2]
[364103877,1749000639031,-440.0,0.00020155,2]
[364103878,1749000639041,-440.0,0.00020155,2]
[364103879,1749000639051,-264.64706,0.00020187,2]
[364103880,1749000639062,-440.0,0.00020255,2]
[364103881,1749000639071,-440.0,0.00020255,2]
[364103882,1749000639083,-440.0,0.00020255,2]
[364103883,1749000639093,-1580.81026283,0.00020314,3]
[364103884,1749000639103,-900.0,0.00020331,2]
[364103886,1749000639114,-440.0,0.00020429,2]
[364103887,1749000639123,-338.59035792,0.00020429,2]
[364103888,1749000639133,-440.0,0.00020429,2]
[364103889,1749000639143,-440.0,0.00020429,2]
[364103890,1749000639153,-440.0,0.00020529,2]
[364103891,1749000639163,-440.0,0.00020529,2]
[364103892,1749000639182,-553.42,0.00020529,2]
[364103893,1749000639192,-1580.81026283,0.00020555,3]
[364103894,1749000639201,-440.0,0.00020703,2]
[364103895,1749000639210,-440.0,0.00020703,2]
[364103896,1749000639219,-440.0,0.00020703,2]
[364103897,1749000639228,-1580.81026283,0.00020797,4]
[364103899,1749000639238,-440.0,0.00020803,2]
[364103900,1749000639246,-440.0,0.00020803,2]
[364103901,1749000639256,-1986.02622383,0.00020938,2]
[364103902,1749000639264,-440.0,0.00020977,2]
[364103903,1749000639273,-440.0,0.00020977,2]
[364103904,1749000639283,-440.0,0.00020977,2]
[364103905,1749000639292,-10664.34851827,0.00021,2]
[364103906,1749000639302,-53125.61033578,0.00021,7]
[364103907,1749000639312,-1580.81026283,0.00021038,4]
[364103908,1749000639322,-440.0,0.00021077,2]
[364103909,1749000639332,-440.0,0.00021077,2]
[364103910,1749000639341,-5000.0,0.00021133,2]
[364103911,1749000639351,-440.0,0.00021251,2]
[364103912,1749000639361,-440.0,0.00021251,2]
[364103913,1749000639371,-440.0,0.00021251,2]
[364103914,1749000639381,-1580.81026283,0.00021279,5]
[364103915,1749000639391,-224.07512913,0.00021351,2]
[364103916,1749000639401,-440.0,0.00021351,2]
[364103917,1749000639410,-741.13,0.00021391,2]
[364103918,1749000639420,-900.0,0.00021427,2]
[364103919,1749000639430,-741.13,0.00021491,2]
[364103920,1749000639440,-1580.81026283,0.00021521,5]
[364103922,1749000639449,-440.0,0.00021525,2]
[364103924,1749000639458,-440.0,0.00021525,2]
[364103926,1749000639468,-741.13,0.00021591,2]
[364103928,1749000639477,-440.0,0.00021625,2]
[364103929,1749000639487,-1986.0262238,0.00021636,2]
[364103930,1749000639497,-741.13,0.00021691,2]
[364103931,1749000639507,-5902.93689244,0.000217,2]
[364103932,1749000639516,-156.32681685,0.00021735,2]
[364103933,1749000639526,-1580.81026283,0.00021762,5]
[364103934,1749000639536,-741.13,0.00021791,2]
[364103935,1749000639546,-440.0,0.00021799,2]
[364103936,1749000639555,-440.0,0.00021799,2]
[364103937,1749000639565,-741.13,0.00021891,2]
[364103938,1749000639575,-215.12,0.00021899,2]
[364103939,1749000639584,-741.13,0.00021991,3]
[364103940,1749000639594,-852.45344,0.00021999,2]
[364103941,1749000639603,-170.0,0.00022,2]
[364103942,1749000639613,-171.0,0.00022,2]
[364103943,1749000639623,-20583.56698152,0.00022,2]
[364103944,1749000639633,-165.37665368,0.00022,10]
[364103945,1749000639643,-1580.81026283,0.00022003,6]
[364103946,1749000639657,-11421.03077928,0.00022031,2]
[364103947,1749000639667,-328.1592,0.00022073,2]
[364103948,1749000639677,-440.0,0.00022073,2]
[364103949,1749000639687,-741.13,0.00022091,3]
[364103950,1749000639696,-1170.75,0.000221,7]
[364103951,1749000639706,-741.13,0.00022191,7]
[364103952,1749000639715,-1341.26624534,0.000222,2]
[364103953,1749000639725,-1580.81026283,0.00022245,6]
[364103954,1749000639734,-741.13,0.00022291,7]
[364103955,1749000639743,-500.0,0.00022299,2]
[364103956,1749000639753,-212.86879254,0.000223,7]
[364103957,1749000639764,-188251.82,0.000223,7]
[364103958,1749000639774,-2457.77,0.000223,7]
[364103959,1749000639783,-12670.76136593,0.000223,7]
[364103961,1749000639793,-1986.0262238,0.00022333,2]
[364103962,1749000639803,-440.0,0.00022347,2]
[364103964,1749000639812,-741.13,0.00022391,7]
[364103966,1749000639822,-1580.81026283,0.00022486,7]
[364103967,1749000639831,-741.13,0.00022491,7]
[364103968,1749000639841,-153.0,0.00022493,2]
[364103969,1749000639851,-572.6068135,0.00022493,2]
[364103970,1749000639860,-153.234842,0.00022493,2]
[364103971,1749000639870,-158.5442955,0.00022493,2]
[364103972,1749000639879,-153.0,0.00022493,2]
[364103973,1749000639889,-300.4979102,0.00022493,2]
[364103974,1749000639898,-572.6068135,0.00022493,2]
[364103975,1749000639908,-153.0,0.00022493,2]
[364103977,1749000639919,-572.6068135,0.00022493,2]
[364103979,1749000639929,-153.0,0.00022493,2]
[364103981,1749000639938,-153.0,0.00022493,2]
[364103983,1749000639947,-1145.213627,0.00022493,2]
[364103985,1749000639957,-153.0,0.00022493,2]
[364103987,1749000639967,-153.0,0.00022493,2]
[364103989,1749000639976,-154.9256923,0.00022493,2]
[364103991,1749000639986,-154.8209092,0.00022493,2]
[364103993,1749000639996,-6115.94959678,0.000225,60]
[364103995,1749000640006,-900.0,0.00022523,2]
[364103997,1749000640015,-518.58196752,0.00022558,2]
[364103999,1749000640025,-741.13,0.00022591,3]
[364104001,1749000640035,-741.13,0.00022691,5]
[364104003,1749000640044,-15358.68236298,0.00022712,7]
[364104005,1749000640054,-1580.81026283,0.00022728,7]
[364104007,1749000640064,-349.5,0.0002278,2]
[364104009,1749000640073,-741.13,0.00022791,7]
[364104023,1749000640197,-207.4,0.0002287,2]
[364104025,1749000640207,-741.13,0.00022891,2]
[364104027,1749000640217,-1580.81026283,0.00022969,8]
[364104029,1749000640226,-353.62005715,0.00022973,2]
[364104031,1749000640235,-500.0,0.00022973,2]
[364104033,1749000640245,-500.0,0.00022973,2]
[364104034,1749000640254,-501.59296241,0.00022973,2]
[364104036,1749000640263,-500.48097815,0.00022973,2]
[364104039,1749000640273,-181.76766452,0.00022973,2]
[364104040,1749000640283,-501.15522276,0.00022973,2]
[364104042,1749000640293,-325.79914212,0.00022973,2]
[364104044,1749000640302,-188.85502185,0.00022973,2]
[364104046,1749000640311,-501.89640537,0.00022973,2]
[364104049,1749000640321,-525.7941134,0.00022973,2]
[364104052,1749000640331,-500.47877394,0.00022973,2]
[364104054,1749000640340,-741.13,0.00022991,2]
[364104056,1749000640350,-67229.24665096,0.00023,2]
[364104058,1749000640359,-1103.05249401,0.00023,20]
[364104060,1749000640369,-262053.11675678,0.00023,2]
[364104062,1749000640378,-559.5239719,0.00023,5]
[364104064,1749000640388,-10000.0,0.00023,2]
[364104066,1749000640397,-1326.6462031,0.00023,2]
[364104068,1749000640407,-171.0,0.00023014,7]
[364104070,1749000640418,-1986.0262238,0.00023031,2]
[364104073,1749000640427,-741.13,0.00023091,5]
[364104075,1749000640437,-1341.26624533,0.00023116,2]
[364104076,1749000640447,-741.13,0.00023191,3]
[364104079,1749000640456,-2457.77,0.000232,7]
[364104081,1749000640466,-1580.81026283,0.0002321,8]
[364104083,1749000640475,-2000.0,0.00023287,2]
[364104085,1749000640484,-2000.0,0.00023287,2]
[364104087,1749000640494,-2000.0,0.00023287,2]
[364104089,1749000640502,-2000.0,0.00023287,2]